bitfinex/quotes_BTCUSD_20220405
["timestamp","ask_amount","ask_price","bid_price","bid_amount"]
[1649118107293,0.05,46619.0,46616.0,0.00164333]
[1649118107495,0.32208,46619.0,46616.0,0.00164333]
[1649118107595,0.50352,46621.0,46616.0,0.00164333]
[1649118107696,0.32208,46620.0,46616.0,0.00164333]
[1649118107896,0.42208,46620.0,46616.0,0.00164333]
[1649118108095,0.56334369,46620.0,46616.0,0.00164333]
[1649118108298,0.29777423,46619.0,46616.0,0.0010512]
[1649118108397,0.05,46619.0,46616.0,0.0010512]
[1649118108497,0.05,46619.0,46616.0,0.00162206]
[1649118108696,0.29126369,46620.0,46616.0,0.00162206]
[1649118108800,0.32208,46619.0,46616.0,0.00162206]
[1649118109101,0.37208,46619.0,46616.0,0.00162206]
[1649118109593,0.37208,46619.0,46614.0,0.27995977]
[1649118109694,0.05,46619.0,46615.0,0.00057087]
[1649118109843,0.29126369,46620.0,46615.0,0.00057087]
[1649118110045,0.15,46620.0,46615.0,0.00057087]
[1649118110794,0.15,46620.0,46614.0,0.27995977]
[1649118110898,0.15,46620.0,46615.0,0.00057087]
[1649118110994,0.05,46620.0,46615.0,0.00057087]
[1649118111094,0.05352,46621.0,46615.0,0.00057087]
[1649118111598,0.35352,46621.0,46615.0,0.00057087]
[1649118111694,0.05352,46621.0,46615.0,0.00057087]
[1649118111794,0.15352,46621.0,46615.0,0.00057087]
[1649118111895,0.15352,46621.0,46614.0,0.27995977]
[1649118111896,0.15352,46621.0,46618.0,0.00104884]
[1649118112000,0.32208,46620.0,46618.0,0.00104884]
[1649118112248,0.47208,46620.0,46618.0,0.00104884]
[1649118112549,0.61334369,46620.0,46618.0,0.00104884]
[1649118112747,0.47208,46620.0,46618.0,0.00104884]
[1649118114443,0.15,46620.0,46617.0,0.00104648]
[1649118114547,0.15,46620.0,46617.0,0.00161833]
[1649118114693,0.0428,46621.0,46617.0,0.00161833]
[1649118114794,0.32208,46620.0,46617.0,0.00161833]
[1649118114893,0.0428,46621.0,46617.0,0.00161833]
[1649118115295,0.32208,46620.0,46617.0,0.00161833]
[1649118115494,0.62208,46620.0,46617.0,0.00104648]
[1649118115594,0.47208,46620.0,46617.0,0.00104648]
[1649118116146,0.77208,46620.0,46617.0,0.00104648]
[1649118116347,0.29536524,46618.0,46617.0,0.00104648]
[1649118116447,0.61744524,46618.0,46617.0,0.00104648]
[1649118116548,0.66744524,46618.0,46617.0,0.00104648]
[1649118116650,0.66744524,46618.0,46616.0,0.00161944]
[1649118116748,0.32208,46617.0,46616.0,0.00104766]
[1649118117348,0.62208,46617.0,46616.0,0.00104766]
[1649118117846,0.3,46617.0,46616.0,0.00104766]
[1649118118397,0.62208,46617.0,46616.0,0.00104766]
[1649118118500,0.3,46617.0,46614.0,0.00157576]
[1649118119101,0.3,46617.0,46614.0,0.00100396]
[1649118119653,0.05,46618.0,46614.0,0.00100396]
[1649118119851,0.01072,46622.0,46614.0,0.00100396]
[1649118120006,0.01272,46622.0,46614.0,0.00100396]
[1649118120121,0.01272,46622.0,46612.0,0.04663552]
[1649118120303,0.00414202,46622.0,46612.0,0.04663552]
[1649118120402,0.01272,46622.0,46612.0,0.04663552]
[1649118120606,0.30746225,46621.0,46612.0,0.04663552]
[1649118120840,0.35746225,46621.0,46612.0,0.04663552]
[1649118121040,0.3,46620.0,46612.0,0.04663552]
[1649118121241,0.3,46620.0,46611.0,0.29625395]
[1649118121390,0.3,46620.0,46605.0,0.01373]
[1649118121692,0.3,46620.0,46606.0,0.26148421]
[1649118122394,0.3,46620.0,46614.0,0.00096562]
[1649118122495,0.32208,46619.0,46614.0,0.00096562]
[1649118122595,0.3,46620.0,46614.0,0.00096562]
[1649118122704,0.32208,46619.0,46614.0,0.00096562]
[1649118122797,0.4412664,46620.0,46614.0,0.00096562]
[1649118122898,0.37208,46619.0,46614.0,0.00096562]
[1649118122996,0.32208,46618.0,46614.0,0.00096562]
[1649118123096,0.05,46619.0,46614.0,0.00096562]
[1649118123196,0.32208,46619.0,46614.0,0.00096562]
[1649118123296,0.37208,46619.0,46614.0,0.00096562]
[1649118123597,0.32208,46618.0,46614.0,0.00096562]
[1649118123699,0.3,46617.0,46614.0,0.00096562]
[1649118124247,0.3,46617.0,46611.0,0.00061109]
[1649118124448,0.3,46617.0,46611.0,0.23879303]
[1649118125099,0.35,46620.0,46611.0,0.23818194]
[1649118125201,0.3,46620.0,46611.0,0.23818194]
[1649118125351,0.30061096,46620.0,46611.0,0.23879303]
[1649118126152,0.32208,46619.0,46611.0,0.23879303]
[1649118126253,0.30061096,46620.0,46611.0,0.23879303]
[1649118126354,0.3,46620.0,46613.0,0.00123095]
[1649118126503,0.32208,46619.0,46613.0,0.00123095]
[1649118126605,0.37208,46619.0,46613.0,0.00123095]
[1649118127207,0.42572539,46619.0,46613.0,0.00123095]
[1649118128490,0.42572539,46619.0,46611.0,0.00181999]
[1649118128690,0.42572539,46619.0,46611.0,0.00121469]
[1649118128940,0.42572539,46619.0,46611.0,0.00180688]
[1649118129144,0.32208,46618.0,46611.0,0.00180688]
[1649118129244,0.62208,46617.0,46611.0,0.00180688]
[1649118129343,0.35,46617.0,46611.0,0.00180688]
[1649118129643,0.32208,46616.0,46611.0,0.00180688]
[1649118129747,0.32208,46615.0,46611.0,0.00180688]
[1649118129896,0.3,46614.0,46611.0,0.00121469]
[1649118130197,0.32208,46613.0,46611.0,0.00121469]
[1649118130303,0.3,46614.0,46611.0,0.00121469]
[1649118130496,0.3,46614.0,46608.0,0.0512278]
[1649118130795,0.3,46614.0,46608.0,0.33587834]
[1649118130996,0.3,46614.0,46608.0,0.38587834]
[1649118131097,0.3,46614.0,46608.0,0.33587834]
[1649118131349,0.3,46614.0,46609.0,0.00034043]
[1649118132392,0.3,46614.0,46608.0,0.33587834]
[1649118132740,0.62208,46614.0,46613.0,0.00100655]
[1649118133039,0.87644421,46614.0,46613.0,0.00100655]
[1649118133341,0.62208,46614.0,46613.0,0.00100655]
[1649118133542,0.32208,46614.0,46613.0,0.00100655]
[1649118133843,0.27054,46614.0,46613.0,0.00100655]
[1649118133943,0.32208,46615.0,46613.0,0.0007204]
[1649118134044,0.0002327,46616.0,46613.0,0.0007204]
[1649118134242,0.32208,46615.0,46613.0,0.0007204]
[1649118134644,0.32208,46615.0,46610.0,0.00098248]
[1649118134743,0.0430327,46616.0,46610.0,0.00098248]
[1649118134744,0.0428,46616.0,46610.0,0.00098248]
[1649118134898,0.32208,46615.0,46610.0,0.00098248]
[1649118135047,0.04341057,46616.0,46610.0,0.00098248]
[1649118135145,0.32208,46615.0,46610.0,0.00098248]
[1649118135346,0.32208,46614.0,46610.0,0.00098248]
[1649118135445,0.32208,46615.0,46610.0,0.00098248]
[1649118135596,0.62931625,46614.0,46610.0,0.00098248]
[1649118135747,0.30723625,46614.0,46610.0,0.00098248]
[1649118136099,0.0428,46616.0,46610.0,0.00098248]
[1649118136200,0.32269058,46615.0,46610.0,0.00098248]
[1649118136398,0.00061058,46615.0,46610.0,0.00098248]
[1649118136850,0.32269058,46615.0,46609.0,0.22230034]
[1649118136950,0.00061058,46615.0,46609.0,0.22230034]
[1649118137149,0.28208689,46614.0,46609.0,0.22168968]
[1649118137251,0.04286487,46616.0,46609.0,0.22168968]
[1649118137350,0.32208,46615.0,46609.0,0.22230034]
[1649118137503,0.00061058,46615.0,46609.0,0.22230034]
[1649118138301,0.00061058,46615.0,46609.0,0.22168968]
[1649118138401,0.04286487,46616.0,46609.0,0.22168968]
[1649118138501,0.04286487,46616.0,46609.0,0.22230034]
[1649118138652,0.00061058,46615.0,46609.0,0.22230034]
[1649118138955,0.32208,46614.0,46612.0,0.0009682]
[1649118139058,0.00061058,46615.0,46612.0,0.0009682]
[1649118139154,0.32208,46614.0,46612.0,0.0009682]
[1649118139354,0.00061058,46615.0,46612.0,0.0009682]
[1649118139608,0.32208,46617.0,46612.0,0.0009682]
[1649118139908,0.00059169,46615.0,46612.0,0.0009682]
[1649118140609,0.32208,46614.0,46612.0,0.0009682]
[1649118140711,0.05553,46620.0,46612.0,0.0009682]
[1649118140812,0.23209826,46615.0,46612.0,0.0009682]
[1649118140910,0.32208,46614.0,46612.0,0.0009682]
[1649118141111,0.32208,46615.0,46612.0,0.0009682]
[1649118141311,0.32208,46615.0,46609.0,0.00156116]
[1649118141511,0.00059169,46616.0,46609.0,0.00156116]
[1649118141912,0.00059169,46616.0,46609.0,0.00096938]
[1649118142012,0.35,46619.0,46609.0,0.00096938]
[1649118142111,0.32208,46618.0,46609.0,0.00096938]
[1649118142216,0.0005917,46615.0,46609.0,0.00156116]
[1649118142363,0.32208,46614.0,46612.0,0.29754507]
[1649118142518,0.0005917,46615.0,46609.0,0.00156116]
[1649118142763,0.32208,46614.0,46609.0,0.00156116]
[1649118142863,0.00065648,46615.0,46609.0,0.00156116]
[1649118143116,0.32208,46614.0,46609.0,0.00156116]
[1649118143216,0.32208,46614.0,46609.0,0.00096938]
[1649118143217,0.3,46613.0,46609.0,0.00096938]
[1649118143364,0.32208,46612.0,46609.0,0.00153946]
[1649118143469,0.27026248,46610.0,46609.0,0.00057008]
[1649118143565,0.89234248,46610.0,46609.0,0.00057008]
[1649118143666,0.98514248,46610.0,46609.0,0.00057008]
[1649118144017,1.12640567,46610.0,46609.0,0.00057008]
[1649118144215,0.85614319,46610.0,46609.0,0.00057008]
[1649118144416,0.85614319,46610.0,46606.0,0.001]
[1649118144517,0.32208,46609.0,46606.0,0.001]
[1649118144616,0.32208,46609.0,46607.0,0.00057008]
[1649118144816,0.0428,46608.0,46607.0,0.00057008]
[1649118144918,0.66488,46608.0,46607.0,0.00057008]
[1649118145570,0.66488,46608.0,46606.0,0.001]
[1649118145668,0.62208,46607.0,46606.0,0.001]
[1649118145869,0.66488,46607.0,46606.0,0.001]
[1649118148704,0.66494476,46607.0,46606.0,0.001]
[1649118149203,0.66494476,46607.0,46606.0,0.00197528]
[1649118150762,0.768539,46607.0,46606.0,0.00197528]
[1649118150859,0.868539,46607.0,46606.0,0.00197528]
[1649118151258,0.568539,46607.0,46606.0,0.00197528]
[1649118151359,0.51488,46607.0,46606.0,0.00197528]
[1649118154266,0.37208,46607.0,46606.0,0.00197528]
[1649118154364,0.05,46607.0,46606.0,0.00197528]
[1649118154465,0.14129618,46609.0,46606.0,0.00197528]
[1649118154597,0.32208,46607.0,46606.0,0.00197528]
[1649118154797,0.37215227,46607.0,46606.0,0.00197528]
[1649118155503,0.67215227,46607.0,46606.0,0.00197528]
[1649118155702,0.71495227,46607.0,46606.0,0.00197528]
[1649118155802,0.85624845,46607.0,46606.0,0.00197528]
[1649118156703,0.95624845,46607.0,46606.0,0.00197528]
[1649118156803,0.95632579,46607.0,46606.0,0.00197528]
[1649118156905,0.91352579,46607.0,46606.0,0.00197528]
[1649118157004,0.61352579,46607.0,46606.0,0.00197528]
[1649118157205,0.47222961,46607.0,46606.0,0.00197528]
[1649118157710,0.47222961,46607.0,46606.0,0.00186846]
[1649118159811,0.77222961,46607.0,46606.0,0.00186846]
[1649118160315,0.47222961,46607.0,46606.0,0.00186846]
[1649118160514,0.77222961,46607.0,46606.0,0.00186846]
[1649118162850,0.9135197,46607.0,46606.0,0.00186846]
[1649118162946,0.91361007,46607.0,46606.0,0.00186846]
[1649118163048,0.77231998,46607.0,46606.0,0.00186846]
[1649118163751,0.77231998,46607.0,46606.0,0.00089318]
[1649118164553,0.91360972,46607.0,46606.0,0.00089318]
[1649118164755,0.77231998,46607.0,46606.0,0.00089318]
[1649118166724,0.47231998,46607.0,46606.0,0.00089318]
[1649118168781,0.47226569,46607.0,46606.0,0.00089318]
[1649118171520,0.15018569,46607.0,46606.0,0.00089318]
[1649118171617,0.00018569,46607.0,46606.0,0.00089318]
[1649118171866,0.32226569,46607.0,46606.0,0.00089318]
[1649118172066,0.47226569,46607.0,46606.0,0.00089318]
[1649118172620,0.47226569,46607.0,46606.0,0.13868076]
[1649118176226,0.52226569,46607.0,46606.0,0.13868076]
[1649118177834,0.20018569,46607.0,46606.0,0.13868076]
[1649118177933,0.50018569,46607.0,46606.0,0.13868076]
[1649118178033,0.40018569,46607.0,46606.0,0.13868076]
[1649118178131,0.50018569,46607.0,46606.0,0.13868076]
[1649118178683,0.20018569,46607.0,46606.0,0.13868076]
[1649118178783,0.20010835,46607.0,46606.0,0.13868076]
[1649118179132,0.15010835,46607.0,46606.0,0.13868076]
[1649118179232,0.00010835,46607.0,46606.0,0.13868076]
[1649118179535,0.30010835,46607.0,46606.0,0.13868076]
[1649118179883,0.40010835,46607.0,46606.0,0.13868076]
[1649118180137,0.40010835,46607.0,46606.0,0.13010278]
[1649118180234,0.10010835,46607.0,46606.0,0.13010278]
[1649118180338,7.09003,46608.0,46606.0,0.13010278]
[1649118180485,0.3,46607.0,46606.0,0.13010278]
[1649118180867,0.30016253,46607.0,46606.0,0.13010278]
[1649118181430,0.00016253,46607.0,46606.0,0.13010278]
[1649118181628,0.30016253,46607.0,46606.0,0.13010278]
[1649118181729,0.00016253,46607.0,46606.0,0.13010278]
[1649118182479,7.04003,46608.0,46607.0,0.00032505]
[1649118182777,7.04003,46608.0,46607.0,0.32240505]
[1649118182882,7.04003,46608.0,46607.0,0.30448405]
[1649118183078,7.04003,46608.0,46607.0,0.63898033]
[1649118183179,7.04003,46608.0,46607.0,0.33482133]
[1649118183780,7.04003,46608.0,46607.0,0.65690133]
[1649118183981,7.04003,46608.0,46607.0,0.33482133]
[1649118184079,7.04003,46608.0,46607.0,0.65690133]
[1649118184279,7.04003,46608.0,46607.0,0.65890133]
[1649118185175,7.04003,46608.0,46607.0,0.30648405]
[1649118185480,7.04003,46608.0,46607.0,0.30448405]
[1649118186178,7.04003,46608.0,46607.0,0.6389379]
[1649118186278,7.04003,46608.0,46607.0,0.6409379]
[1649118187129,7.04003,46608.0,46607.0,0.6909379]
[1649118187578,7.04003,46608.0,46607.0,0.6889379]
[1649118188280,7.04003,46608.0,46607.0,0.6919379]
[1649118189531,7.04003,46608.0,46607.0,0.6889379]
[1649118190030,7.04003,46608.0,46607.0,0.35448405]
[1649118190383,7.04003,46608.0,46607.0,0.35748405]
[1649118191682,7.04003,46608.0,46607.0,0.35448405]
[1649118191984,7.04003,46608.0,46607.0,0.68887342]
[1649118192335,7.04003,46608.0,46607.0,0.69187342]
[1649118193588,7.04003,46608.0,46607.0,0.68887342]
[1649118194890,7.04003,46608.0,46607.0,0.35448405]
[1649118196079,7.04003,46608.0,46607.0,0.30448405]
[1649118199138,7.04003,46608.0,46607.0,0.35448405]
[1649118202558,7.04003,46608.0,46607.0,0.00032505]
[1649118202757,7.04003,46608.0,46607.0,0.32240505]
[1649118203598,7.04003,46608.0,46607.0,0.65675975]
[1649118204600,7.04003,46608.0,46607.0,0.32240505]
[1649118205103,7.04003,46608.0,46607.0,0.00032505]
[1649118205302,7.04003,46608.0,46607.0,0.32240505]
[1649118205402,7.04003,46608.0,46607.0,0.00032505]
[1649118205502,7.04003,46608.0,46607.0,0.30448405]
[1649118205603,7.04003,46608.0,46607.0,0.32240505]
[1649118206052,7.04003,46608.0,46607.0,0.00032505]
[1649118206203,7.04003,46608.0,46607.0,0.32240505]
[1649118206302,7.04003,46608.0,46607.0,0.00032505]
[1649118206806,7.04003,46608.0,46607.0,0.32240505]
[1649118206905,7.04003,46608.0,46607.0,0.30448405]
[1649118207126,7.04003,46608.0,46607.0,0.30439561]
[1649118207529,7.04003,46608.0,46607.0,0.6387977]
[1649118212453,6.56914751,46608.0,46607.0,0.6387977]
[1649118214827,6.56924197,46608.0,46607.0,0.6387977]
[1649118219191,6.56924197,46608.0,46607.0,0.3346387]
[1649118219289,6.56924197,46608.0,46607.0,0.6567187]
[1649118219491,6.56924197,46608.0,46607.0,0.3346387]
[1649118219791,6.56924197,46608.0,46607.0,0.6567187]
[1649118219891,6.56924197,46608.0,46607.0,0.6387977]
[1649118220640,6.56924197,46608.0,46607.0,0.6567187]
[1649118221152,6.56924197,46608.0,46607.0,0.3346387]
[1649118221245,6.56924197,46608.0,46607.0,0.6567187]
[1649118221643,6.56924197,46608.0,46607.0,0.6387977]
[1649118222138,6.56924197,46608.0,46607.0,0.3346387]
[1649118222333,6.56924197,46608.0,46607.0,0.6567187]
[1649118222632,6.56924197,46608.0,46607.0,0.3346387]
[1649118222782,6.56924197,46608.0,46607.0,0.6567187]
[1649118222982,6.56924197,46608.0,46607.0,0.3346387]
[1649118223184,6.56924197,46608.0,46607.0,0.6567187]
[1649118223384,6.56924197,46608.0,46607.0,0.3346387]
[1649118223484,6.56924197,46608.0,46607.0,0.6567187]
[1649118224338,6.56924197,46608.0,46607.0,0.3346387]
[1649118224439,6.56924197,46608.0,46607.0,0.6567187]
[1649118224840,6.56924197,46608.0,46607.0,0.3346387]
[1649118225038,6.56924197,46608.0,46607.0,0.6567187]
[1649118225240,6.56924197,46608.0,46607.0,0.3346387]
[1649118225341,6.56924197,46608.0,46607.0,0.6567187]
[1649118225440,6.56924197,46608.0,46607.0,0.3346387]
[1649118225588,6.56924197,46608.0,46607.0,0.6387977]
[1649118228592,6.56924197,46608.0,46607.0,0.6567187]
[1649118233576,6.56924197,46608.0,46607.0,0.65663224]
[1649118235582,6.56924197,46608.0,46607.0,0.33455224]
[1649118235682,6.56924197,46608.0,46607.0,0.65663224]
[1649118237131,6.56914751,46608.0,46607.0,0.65663224]
[1649118240195,6.56914751,46608.0,46607.0,0.63012866]
[1649118240289,6.56056511,46608.0,46607.0,0.63012866]
[1649118240390,6.56056511,46608.0,46607.0,0.32596966]
[1649118240491,6.56056511,46608.0,46607.0,0.64804966]
[1649118242413,6.08960089,46608.0,46607.0,0.64804966]
[1649118244949,6.0896683,46608.0,46607.0,0.64804966]
[1649118245349,6.0896083,46608.0,46607.0,0.64804966]
[1649118245452,6.0896083,46608.0,46607.0,1.29084966]
[1649118245453,2.26736892,46608.0,46607.0,1.29084966]
[1649118245601,1.54838576,46608.0,46607.0,1.23386191]
[1649118245953,0.95987921,46608.0,46607.0,1.49871682]
[1649118246048,0.95987921,46608.0,46607.0,1.50956646]
[1649118246049,0.65195021,46608.0,46607.0,1.50956646]
[1649118246153,0.33581521,46608.0,46607.0,1.50956646]
[1649118246250,0.33581521,46608.0,46607.0,2.16566646]
[1649118246350,0.33581521,46608.0,46607.0,2.17852977]
[1649118246449,0.33581521,46608.0,46607.0,2.61370797]
[1649118246655,0.33581521,46608.0,46607.0,2.22239456]
[1649118246750,0.33581521,46608.0,46607.0,2.58499364]
[1649118246849,0.33581521,46608.0,46607.0,1.92889364]
[1649118246950,0.33581521,46608.0,46607.0,1.62889364]
[1649118247206,0.33581521,46608.0,46607.0,1.84949353]
[1649118248002,0.33581521,46608.0,46607.0,1.84649353]
[1649118248386,0.33581521,46608.0,46607.0,2.34649353]
[1649118248483,0.33581521,46608.0,46607.0,2.35049353]
[1649118249086,0.33581521,46608.0,46607.0,2.30049353]
[1649118249193,0.33581521,46608.0,46607.0,2.07989364]
[1649118249687,0.33581521,46608.0,46607.0,2.07589364]
[1649118250191,0.33581521,46608.0,46607.0,1.82688975]
[1649118250491,0.33581521,46608.0,46607.0,1.83088975]
[1649118250997,0.33581521,46608.0,46607.0,1.82004011]
[1649118251393,0.33581521,46608.0,46607.0,1.38786191]
[1649118251592,0.33581521,46608.0,46607.0,1.06431193]
[1649118251697,0.33581521,46608.0,46607.0,1.06031193]
[1649118252477,0.33581521,46608.0,46607.0,1.06431193]
[1649118253128,0.33581521,46608.0,46607.0,1.37184511]
[1649118254382,0.33581521,46608.0,46607.0,1.36784511]
[1649118254483,0.33581521,46608.0,46607.0,1.37184511]
[1649118254583,0.33581521,46608.0,46607.0,1.19539509]
[1649118254986,0.33581521,46608.0,46607.0,1.37184511]
[1649118255286,0.33581521,46608.0,46607.0,1.06431193]
[1649118255587,0.33581521,46608.0,46607.0,1.37184511]
[1649118255684,0.33581521,46608.0,46607.0,1.36784511]
[1649118256379,0.33581521,46608.0,46607.0,1.19139509]
[1649118256478,0.33581521,46608.0,46607.0,1.19539509]
[1649118257781,0.33581521,46608.0,46607.0,1.19139509]
[1649118258534,0.33581521,46608.0,46607.0,1.19539509]
[1649118259637,0.33581521,46608.0,46607.0,1.24902109]
[1649118259838,0.33581521,46608.0,46607.0,1.24502109]
[1649118260542,0.33581521,46608.0,46607.0,1.25102109]
[1649118261595,0.33581521,46608.0,46607.0,1.75102109]
[1649118261794,0.33581521,46608.0,46607.0,1.74502109]
[1649118262397,0.33581521,46608.0,46607.0,1.27992884]
[1649118262496,0.33581521,46608.0,46607.0,0.93559566]
[1649118262648,0.33581521,46608.0,46607.0,1.20404966]
[1649118263404,0.33581521,46608.0,46607.0,0.70404966]
[1649118263807,0.33581521,46608.0,46607.0,0.69804966]
[1649118264563,0.33581521,46608.0,46607.0,0.70204966]
[1649118265664,0.33581521,46608.0,46607.0,0.68412866]
[1649118265764,0.33581521,46608.0,46607.0,0.37596966]
[1649118265870,0.33581521,46608.0,46607.0,0.68012866]
[1649118265966,0.33581521,46608.0,46607.0,0.37596966]
[1649118266068,0.33581521,46608.0,46607.0,0.69804966]
[1649118266165,0.33581521,46608.0,46607.0,0.37596966]
[1649118266266,0.33581521,46608.0,46607.0,0.69804966]
[1649118266466,0.33581521,46608.0,46607.0,0.70104966]
[1649118267832,0.33581521,46608.0,46607.0,0.69804966]
[1649118268587,0.33581521,46608.0,46607.0,0.70104966]
[1649118268684,0.33581521,46608.0,46607.0,0.37896966]
[1649118268838,0.33581521,46608.0,46607.0,0.70104966]
[1649118269136,0.33581521,46608.0,46607.0,0.3749635]
[1649118269784,0.33581521,46608.0,46607.0,0.3719635]
[1649118271630,0.33581521,46608.0,46607.0,0.32208]
[1649118271732,0.33581521,46608.0,46606.0,0.13010278]
[1649118272432,0.0428,46610.0,46608.0,0.13509656]
[1649118272632,0.32208,46609.0,46608.0,0.13509656]
[1649118273031,0.0428,46610.0,46608.0,0.13509656]
[1649118273132,0.32208,46609.0,46608.0,0.13509656]
[1649118275473,0.31823342,46614.0,46608.0,0.13509656]
[1649118275573,0.01173,46614.0,46608.0,0.13509656]
[1649118276577,0.001,46614.0,46608.0,0.13509656]
[1649118276679,0.001,46614.0,46608.0,0.24237256]
[1649118276776,0.001,46614.0,46609.0,0.00054085]
[1649118277279,0.32208,46613.0,46609.0,0.00054085]
[1649118277582,0.54327911,46613.0,46609.0,0.00054085]
[1649118277781,0.55400911,46613.0,46608.0,0.13509656]
[1649118277883,0.23192911,46613.0,46608.0,0.13509656]
[1649118277981,0.22119911,46613.0,46609.0,0.00054085]
[1649118278082,0.32208,46612.0,46609.0,0.00054085]
[1649118278182,0.32208,46611.0,46609.0,0.00054085]
[1649118278281,0.32208,46613.0,46609.0,0.00054085]
[1649118278433,0.01073,46614.0,46609.0,0.00054085]
[1649118278734,0.01073,46614.0,46610.0,0.053639]
[1649118278933,0.38912635,46615.0,46610.0,0.053639]
[1649118279033,0.01073,46614.0,46610.0,0.053639]
[1649118279237,0.32208,46613.0,46610.0,0.053639]
[1649118279336,0.32196415,46613.0,46609.0,0.00054086]
[1649118280035,0.67196415,46613.0,46609.0,0.00054086]
[1649118280140,0.67196415,46613.0,46608.0,0.13509656]
[1649118280386,0.67196415,46613.0,46609.0,0.00054085]
[1649118281187,0.47196415,46613.0,46609.0,0.00054085]
[1649118281288,0.67196415,46613.0,46609.0,0.00054085]
[1649118281390,0.67196415,46613.0,46608.0,0.13509656]
[1649118281592,0.67196415,46613.0,46609.0,0.00054085]
[1649118282679,0.67196415,46613.0,46608.0,0.13509656]
[1649118282829,0.67196415,46613.0,46609.0,0.00054085]
[1649118283029,0.47196415,46613.0,46609.0,0.00054085]
[1649118283130,0.67196415,46613.0,46609.0,0.00054085]
[1649118283781,0.67196415,46613.0,46608.0,0.13509656]
[1649118283981,0.67196415,46613.0,46609.0,0.00054085]
[1649118284685,0.47196415,46613.0,46609.0,0.00054085]
[1649118284885,0.67196415,46613.0,46609.0,0.00054085]
[1649118284986,0.67196415,46613.0,46608.0,0.13509656]
[1649118285184,0.67196415,46613.0,46609.0,0.00054085]
[1649118286225,0.67196415,46613.0,46608.0,0.13509656]
[1649118286474,0.67196415,46613.0,46609.0,0.00054085]
[1649118287424,0.67196415,46613.0,46608.0,0.13509656]
[1649118287629,0.67196415,46613.0,46609.0,0.00054085]
[1649118288576,0.67196415,46613.0,46608.0,0.13509656]
[1649118288830,0.67196415,46613.0,46609.0,0.00054085]
[1649118288928,0.47196415,46613.0,46609.0,0.00054085]
[1649118289430,0.32208,46612.0,46609.0,0.00054085]
[1649118289529,0.15,46613.0,46609.0,0.00054085]
[1649118289642,0.1,46612.0,46609.0,0.00054085]
[1649118289738,0.15,46613.0,46609.0,0.00054085]
[1649118289840,0.15,46613.0,46608.0,0.13509656]
[1649118289937,0.1,46613.0,46608.0,0.13509656]
[1649118290037,0.1,46613.0,46609.0,0.00054085]
[1649118290142,0.15,46613.0,46609.0,0.00054085]
[1649118290645,0.05,46613.0,46609.0,0.00054085]
[1649118290841,0.01073,46614.0,46609.0,0.00054085]
[1649118291093,0.01073,46614.0,46608.0,0.24237656]
[1649118291192,0.01073,46614.0,46609.0,0.00054085]
[1649118292195,0.01073,46614.0,46608.0,0.24237656]
[1649118292394,0.01073,46614.0,46609.0,0.00054085]
[1649118293384,0.01073,46614.0,46608.0,0.24237656]
[1649118293634,0.01073,46614.0,46609.0,0.00054085]
[1649118293834,0.65920547,46615.0,46609.0,0.00054085]
[1649118294337,0.34985635,46615.0,46609.0,0.00054085]
[1649118294534,0.55920547,46615.0,46609.0,0.00054085]
[1649118294635,0.65866469,46615.0,46608.0,0.24237656]
[1649118294835,0.65920547,46615.0,46609.0,0.00054085]
[1649118295789,0.322136,46614.0,46608.0,0.24237656]
[1649118295890,0.64793469,46615.0,46608.0,0.24237656]
[1649118295991,0.322136,46614.0,46609.0,0.00054085]
[1649118296190,0.422136,46614.0,46609.0,0.00054085]
[1649118297041,0.422136,46614.0,46608.0,0.13509656]
[1649118297185,0.422136,46614.0,46609.0,0.00054085]
[1649118298186,0.422136,46614.0,46608.0,0.13509656]
[1649118298435,0.422136,46614.0,46609.0,0.00054085]
[1649118299436,8.254e-05,46609.0,46608.0,0.13509656]
[1649118300189,8.254e-05,46609.0,46608.0,0.12651416]
[1649118300395,0.65070672,46615.0,46608.0,0.12651416]
[1649118300489,0.322136,46614.0,46608.0,0.12651416]
[1649118300647,0.001,46614.0,46608.0,0.12651416]
[1649118300788,0.101,46614.0,46608.0,0.12651416]
[1649118301790,0.001,46614.0,46608.0,0.12651416]
[1649118301940,0.65016594,46615.0,46608.0,0.12651416]
[1649118302040,0.341358,46615.0,46609.0,0.00054125]
[1649118302640,0.65070712,46615.0,46609.0,0.00054125]
[1649118302791,0.65070712,46615.0,46610.0,0.053638]
[1649118302792,0.341358,46615.0,46610.0,0.053638]
[1649118302896,0.341358,46615.0,46611.0,0.053638]
[1649118302992,0.23008682,46615.0,46611.0,0.053638]
[1649118303092,0.63943594,46615.0,46611.0,0.053638]
[1649118303292,0.33062801,46615.0,46611.0,0.053638]
[1649118303394,0.63997713,46615.0,46611.0,0.053638]
[1649118304196,0.63943594,46615.0,46611.0,0.053638]
[1649118304396,0.63997711,46615.0,46611.0,0.053638]
[1649118305435,0.63943594,46615.0,46611.0,0.053638]
[1649118305636,0.63997668,46615.0,46611.0,0.053638]
[1649118305984,0.322136,46614.0,46611.0,0.053638]
[1649118306084,0.322136,46614.0,46609.0,0.00054082]
[1649118306585,0.322136,46614.0,46608.0,0.12651416]
[1649118306782,0.322136,46614.0,46609.0,0.00054081]
[1649118307836,0.322136,46614.0,46608.0,0.12651416]
[1649118308034,0.322136,46614.0,46609.0,0.00054082]
[1649118308978,0.322136,46614.0,46608.0,0.12651416]
[1649118309180,0.322136,46614.0,46609.0,0.00054085]
[1649118310232,0.322136,46614.0,46608.0,0.12651416]
[1649118310434,0.322136,46614.0,46609.0,0.00054085]
[1649118311432,0.322136,46614.0,46608.0,0.12651416]
[1649118311683,0.322136,46614.0,46609.0,0.00054085]
[1649118312635,0.322136,46614.0,46608.0,0.12651416]
[1649118312836,0.322136,46614.0,46609.0,0.00054085]
[1649118313739,0.322136,46614.0,46608.0,0.12651416]
[1649118313939,0.322136,46614.0,46609.0,0.00054085]
[1649118315042,0.322136,46614.0,46608.0,0.12651416]
[1649118315146,0.63943594,46615.0,46608.0,0.12651416]
[1649118315245,0.3306276,46615.0,46609.0,0.00054085]
[1649118315342,0.2306276,46615.0,46609.0,0.00054085]
[1649118315553,0.2306276,46615.0,46610.0,0.107284]
[1649118315745,0.322136,46614.0,46610.0,0.107284]
[1649118315889,0.322136,46613.0,46610.0,0.107284]
[1649118316491,0.322136,46612.0,46610.0,0.107284]
[1649118316591,0.322136,46613.0,46610.0,0.107284]
[1649118316693,0.322136,46614.0,46610.0,0.107284]
[1649118317094,0.2306276,46615.0,46610.0,0.107284]
[1649118317346,0.23008682,46615.0,46610.0,0.107284]
[1649118317651,0.23008682,46615.0,46610.0,0.26820831]
[1649118317749,0.2306276,46615.0,46610.0,0.26820831]
[1649118318197,0.322136,46614.0,46610.0,0.31820831]